Workbook

Sheet Сличительное меню
A1: День1 | B1: День2 | C1: День 3 | D1: День 4 | E1: День 5 | F1: День 6 | G1: День 7
A2: Завтрак | B2: Завтрак | C2: Завтрак | D2: Завтрак | E2: Завтрак | F2: Завтрак | G2: Завтрак
A3: Каша геркулесовая молочная | B3: Салат из свежей капусты | C3: запеканка творожная со сгущенкой | D3: Помидоры свежие | E3: Каша пшенная молочная | F3: Сыр порционно | G3: Сырники из творога
A4: Оладьи со сгущенкой | B4: Пюре картофельное | C4: Каша дружба молочная | D4: Макароны отварные | E4: Оладьи со повидлом | F4: Гарнир сложный | G4: Каша ячневая молочная
A5: Хлеб пшеничный | B5: Кнели куриные | C5: Хлеб пшеничный | D5: Сосиска отварная с соусом | E5: Хлеб пшеничный | F5: Курица отварная | G5: Чай с сахаром
A6: Чай с сахаром | B6: Хлеб пшеничный | C6: Какао с молоком | D6: Хлеб пшеничный | E6: Чай без сахара | F6: Хлеб пшеничный | G6: Хлеб пшеничный
B7: Чай с лимоном | D7: Чай с сахаром | F7: Какао с молоком
A8: 2-ой завтрак | B8: 2-ой завтрак | C8: 2-ой завтрак | D8: 2-ой завтрак | E8: 2-ой завтрак | F8: 2-ой завтрак | G8: 2-ой завтрак
A9: Сок | B9: Сок | C9: Сок | D9: Сок | E9: Сок | F9: Сок | G9: Сок
A10: Фрукт | B10: Булочка домашняя | C10: Фрукт | D10: Вафли | E10: Перемяч с мясом | F10: Фрукт | G10: Печенье
G11: Фрукт
A12: Обед | B12: Обед | C12: Обед | D12: Обед | E12: Обед | F12: Обед | G12: Обед
A13: Помидоры свежие с маслом | B13: Огурцы свежие с маслом | C13: Сыр | D13: Салат витаминный(капуста, яблоко, морковь) | E13: Салат из отварной свеклы с зеленым горошком | F13: Салат из свежих огурцов | G13: Помидоры свежие
A14: Суп с макаронными изделиями на мкб | B14: Рассольник на мкб со сметаной | C14: Суп картофельный с крупой | D14: Борщ на мкб со сметаной | E14: Щи на мкб со сметаной | F14: Суп с клецками на мкб | G14: Суп гороховый на мкб
A15: Жаркое из говядины | B15: Рис отварной | C15: Пюре гороховое | D15: Плов из говядины | E15: Пюре картофельное | F15: Гречка отварная | G15: Голубцы ленивые
A16: Хлеб ржано-пшеничный | B16: Рыба припущенная | C16: Котлета из говядины | D16: Хлеб ржано-пшеничный | E16: Тефтели мясные | F16: Биточки рыбные из минтая | G16: Хлеб ржано-пшеничный
A17: Компот из сухофруктов | B17: Хлеб ржано-пшеничный | C17: Хлеб ржано-пшеничный | D17: Компот из сухофруктов | E17: Хлеб ржано-пшеничный | F17: Хлеб ржано-пшеничный | G17: Компот из сухофруктов
B18: Кисель | C18: Компот из свежих фруктов | E18: Кисель | F18: Компот из свежих фруктов

Sheet Примерное 7- дневное меню
A1: Согласовано: | E1: Утверждаю:
A2: Директор МБОУ "Ново-Арышская СОШ " | E2: Директор СПОСПК "ЭДЕМ"
A3: Рыбно-Слободского муниципального района
A4: ___________________ / Д.Х.Набиуллин | E4: ___________Турнина А. А.
A6: Примерное семидневное меню для организации сбалансированного питания детей в оздоровительных
A7: осенних лагерях с дневным прибыванием детей без сна в период каникул
A9: № рецептур | B9: Приём пищи, наименование блюда | C9: Масса порций | D9: Пищевые вещества | G9: Энергетическая ценность (Ккал)
D10: Белки | E10: Жиры | F10: Углеводы
B11: День 1 - завтрак
A12: №182 | B12: Каша геркулесовая молочная со сливочным маслом | C12: 200/5/10 | D12: 7.3 | E12: 10.39 | F12: 16.43 | G12: 188.4
A13: №401 | B13: Оладьи со сгущенкой | C13: 80/20 | D13: 8.4 | E13: 8.95 | F13: 32.26 | G13: 235.12
B14: Хлеб пшеничный | C14: 40 | D14: 4.5 | E14: 2.38 | F14: 16.8 | G14: 120
A15: №376 | B15: Чай с сахаром | C15: 200/15 | D15: 0.021 | E15: 0.005 | F15: 14.975 | G15: 60
B16: День 1 - 2-ой завтрак
B17: Сок | C17: 200 | D17: 0 | E17: 0 | F17: 39 | G17: 76.8
A18: №338 | B18: Фрукт | C18: 200 | D18: 0.52 | E18: 0.34 | F18: 14.7 | G18: 104
B19: День 1 - обед
A20: № 71 | B20: Помидоры свежие порционно с маслом | C20: 100 | D20: 1.1 | E20: 5.2 | F20: 5.2 | G20: 24
A21: №103 | B21: Суп картофельный с макаронными изделиями на мкб | C21: 250/15/10 | D21: 8.36 | E21: 6.33 | F21: 27.44 | G21: 200
A22: № 259 | B22: Жаркое по - домашнему из говядины | C22: 250 | D22: 13.6 | E22: 14.13 | F22: 31.4 | G22: 372.5
B23: Хлеб пшеничный/ ржано пшеничный | C23: 60 | D23: 6.75 | E23: 3.57 | F23: 25.2 | G23: 180
A24: №349 | B24: Компот из сухофруктов | C24: 200 | D24: 0.54 | E24: 0 | F24: 17.58 | G24: 70.73
B25: Итого за день: | D25: =D12+D13+D14+D15+D17+D18+D20+D21+D22+D23+D24 -> 51.091 | E25: =E12+E13+E14+E15+E17+E18+E20+E21+E22+E23+E24 -> 51.295 | F25: 240.985 | G25: 1631.55
B27: День 2 - завтрак
A28: №71 | B28: Салат из белокочанной капусты | C28: 100 | D28: 0.57 | E28: 5.08 | F28: 18.03 | G28: 111
A29: №312 | B29: Пюре картофельное | C29: 150 | D29: 3.09 | E29: 4.675 | F29: 22.027 | G29: 146
A30: №301 | B30: Кнели куриные | C30: 100 | D30: 15.14 | E30: 10.6 | F30: 6.95 | G30: 228
B31: Хлеб пшеничный | C31: 40 | D31: 4.5 | E31: 2.38 | F31: 16.8 | G31: 120
A32: №377 | B32: Чай с лимоном | C32: 200/15/7 | D32: 0.084 | E32: 0.012 | F32: 9.87 | G32: 62
B33: День 2 - 2-ой завтрак
A34: №424 | B34: Булочка домашняя | C34: 45 | D34: 4.42 | E34: 4.2 | F34: 24.84 | G34: 153
B35: Сок | C35: 200 | D35: 0 | E35: 0 | F35: 39 | G35: 76.8
B36: День 2 - обед
A37: №45 | B37: Огурцы свеже порционно с маслом | C37: 100 | D37: 0.66 | E37: 5.08 | F37: 1.8 | G37: 65
A38: №96 | B38: Рассольник ленинградский на мкб со сметаной | C38: 250/15/10 | D38: 7.02 | E38: 8.2 | F38: 17.32 | G38: 171.3
A39: №304 | B39: Рис отварной | C39: 150 | D39: 3.7 | E39: 6.37 | F39: 37.23 | G39: 220
A40: №229 | B40: Рыба припущенная с овощами в сметанном соусе | C40: 100/50 | D40: 9.4 | E40: 7.04 | F40: 12.76 | G40: 174
B41: Хлеб пшеничный/ ржано пшеничный | C41: 60 | D41: 6.75 | E41: 3.57 | F41: 25.2 | G41: 180
A42: №359 | B42: Кисель ягодный | C42: 200 | D42: 0 | E42: 0 | F42: 35.94 | G42: 118
B43: Итого за день: | D43: =D28+D29+D30+D31+D32+D34+D35+D37+D38+D39+D40+D41+D42 -> 55.334 | E43: =E28+E29+E30+E31+E32+E34+E35+E37+E38+E39+E40+E41+E42 -> 57.207 | F43: =F28+F29+F30+F31+F32+F35+F37+F38+F39+F40+F41+F42 -> 242.927 | G43: =G28+G29+G30+G31+G32+G35+G37+G38+G39+G40+G41+G42 -> 1672.1
B45: День 3 - завтрак
A46: №223 | B46: Запеканка из творога со сгущенкой | C46: 80/20 | D46: 8.71 | E46: 4.69 | F46: 11.64 | G46: 139.66
A47: №175 | B47: Каша "дружба" молочная со сливочным маслом | C47: 200/5/10 | D47: 7.4 | E47: 10.45 | F47: 32.97 | G47: 202
B48: Хлеб пшеничный | C48: 40 | D48: 4.5 | E48: 2.38 | F48: 16.8 | G48: 120
A49: №382 | B49: Какао с молоком | C49: 200 | D49: 3.97 | E49: 2.1 | F49: 25.168 | G49: 145
B50: День 3 - 2-ой завтрак
B51: Сок | C51: 200 | D51: 0 | E51: 0 | F51: 11.2 | G51: 45
A52: №338 | B52: Фрукт | C52: 200 | D52: 0.52 | E52: 0.34 | F52: 14.7 | G52: 104
B53: День 3 - обед
A54: №15 | B54: Сыр (порциями) | C54: 15 | D54: 3.9 | E54: 3.97 | F54: 0.52 | G54: 54.75
A55: №101 | B55: Суп картофельный с крупой на мкб со сметаной | C55: 250/15/10 | D55: 7.38 | E55: 6.5 | F55: 20.5 | G55: 192
A56: №306 | B56: Пюре гороховое | C56: 150 | D56: 8.79 | E56: 8.82 | F56: 38.15 | G56: 205
A57: №271 | B57: Котлета из говядины | C57: 100 | D57: 12.7 | E57: 13.92 | F57: 13.52 | G57: 236
B58: Хлеб пшеничный/ ржано пшеничный | C58: 60 | D58: 6.75 | E58: 3.57 | F58: 25.2 | G58: 180
A59: №342 | B59: Компот из свежих фруктов | C59: 200 | D59: 0.17 | E59: 0.17 | F59: 19.18 | G59: 76.8
B60: Итого за день: | D60: =D47+D48+D49+D51+D52+D54+D55+D56+D57+D58+D59 -> 56.08 | E60: =E46+E47+E48+E49+E51+E52+E54+E55+E56+E57+E58+E59 -> 56.91 | F60: 229.548 | G60: 1700.21
B62: День 4 - завтрак
A63: № 71 | B63: Помидоры свежие порционно | C63: 100 | D63: 1.1 | E63: 0.2 | F63: 3.8 | G63: 23.3
A64: №309 | B64: Макаронные изделия отварные | C64: 150 | D64: 5.47 | E64: 6.37 | F64: 36.34 | G64: 224
A65: №243 | B65: Сосиска отварная с соусом | C65: 100/30 | D65: 7.4 | E65: 9.45 | F65: 0.8 | G65: 108
B66: Хлеб пшеничный | C66: 40 | D66: 4.5 | E66: 2.38 | F66: 16.8 | G66: 120
A67: №376 | B67: Чай с сахаром | C67: 200/15 | D67: 0.021 | E67: 0.005 | F67: 14.975 | G67: 60
B68: День 4 - 2-ой завтрак
B69: Сок | C69: 200 | D69: 0 | E69: 0 | F69: 10.5 | G69: 42
B70: Вафли | C70: 50 | D70: 4 | E70: 6 | F70: 31 | G70: 200
B71: День 4 - обед
A72: №49 | B72: Салат "Витаминный" (капуста, морковь, яблоко) | C72: 100 | D72: 1.17 | E72: 5.1 | F72: 11.09 | G72: 106
A73: №82 | B73: Борщ с капустой и картофелем на мкб со сметаной | C73: 250/15/10 | D73: 7.5 | E73: 7.99 | F73: 23.09 | G73: 150
A74: №244 | B74: Плов из говядины | C74: 200 | D74: 10.33 | E74: 16.8 | F74: 34.35 | G74: 354
B75: Хлеб пшеничный/ ржано пшеничный | C75: 60 | D75: 6.75 | E75: 3.57 | F75: 25.2 | G75: 180
A76: №349 | B76: Компот из сухофруктов | C76: 200 | D76: 0.54 | E76: 0 | F76: 17.58 | G76: 70.73
B77: Итого за день: | D77: =D63+D64+D65+D66+D67+D69+D70+D72+D73+D74+D75+D76+D46 -> 57.491 | E77: =E63+E64+E65+E66+E67+E69+E70+E73+E74+E75+E76+E72 -> 57.865 | F77: =F63+F64+F65+F66+F67+F69+F70+F72+F73+F74+F75+F76 -> 225.525 | G77: =G63+G64+G65+G66+G67+G69+G70+G72+G73+G74+G75+G76 -> 1638.03
B79: День 5 - завтрак
A80: №182 | B80: Каша пшенная молочная со сливочным маслом | C80: 200/5/10 | D80: 8.23 | E80: 9.23 | F80: 32.93 | G80: 262.75
A81: №401 | B81: Оладьи со повидлом | C81: 80/20 | D81: 5.4 | E81: 5.95 | F81: 32.26 | G81: 200.48
B82: Хлеб пшеничный | C82: 40 | D82: 4.5 | E82: 2.38 | F82: 16.8 | G82: 120
A83: №375 | B83: Чай без сахара | C83: 200 | D83: 0.01 | E83: 0 | F83: 0.03 | G83: 0.09
B84: День 5 - 2-ой завтрак
B85: Сок | C85: 200 | D85: 0 | E85: 0 | F85: 11.2 | G85: 45
A86: №406 | B86: Перемяч с мясом печёный | C86: 60 | D86: 8.11 | E86: 8.95 | F86: 24.53 | G86: 192
B87: День 5 - обед
A88: №53 | B88: Салат из отварной свеклы с зеленым горошком | C88: 100 | D88: 1.36 | E88: 5.08 | F88: 14.68 | G88: 92.8
A89: №88 | B89: Щи из свежей капусты с картофелем на мкб со сметаной | C89: 250/15/10 | D89: 7.5 | E89: 8.5 | F89: 18.2 | G89: 155.7
A90: №312 | B90: Пюре картофельное | C90: 150 | D90: 3.09 | E90: 4.675 | F90: 22.027 | G90: 146
A91: №279 | B91: Тефтели мясные | C91: 100 | D91: 9.99 | E91: 13.4 | F91: 24.4 | G91: 204
B92: Хлеб пшеничный/ ржано пшеничный | C92: 60 | D92: 6.75 | E92: 3.57 | F92: 25.2 | G92: 180
A93: №359 | B93: Кисель ягодный | C93: 200 | D93: 0 | E93: 0 | F93: 35.94 | G93: 118
B94: Итого за день: | D94: =D80+D81+D82+D83+D86+D85+D88+D89+D90+D91+D92+D93 -> 54.94 | E94: =E80+E81+E82+E83+E86+E85+E89+E90+E91+E92+E93 -> 56.655 | F94: =F80+F81+F82+F83+F86+F85+F89+F90+F91+F92+F93 -> 243.517 | G94: =G80+G81+G82+G83+G86+G85+G88+G89+G90+G91+G92+G93 -> 1716.82
B96: День 6 - завтрак
A97: №15 | B97: Сыр (порциями) | C97: 15 | D97: 3.9 | E97: 3.97 | F97: 0.52 | G97: 54.75
A98: №321 | B98: Гарнир сложный | C98: 150 | D98: 5.01 | E98: 7.8 | F98: 23.43 | G98: 170.6
A99: №288 | B99: Курица отварная | C99: 100 | D99: 9.75 | E99: 4.15 | F99: 0.45 | G99: 120.75
B100: Хлеб пшеничный | C100: 40 | D100: 4.5 | E100: 2.38 | F100: 16.8 | G100: 120
A101: №382 | B101: Какао с молоком | C101: 200 | D101: 4.02 | E101: 3.94 | F101: 16.6 | G101: 116.8
B102: День 6 - 2-ой завтрак
B103: Сок | C103: 200 | D103: 0 | E103: 0 | F103: 11.2 | G103: 45
A104: №338 | B104: Фрукт | C104: 200 | D104: 0.52 | E104: 0.34 | F104: 14.7 | G104: 104
B105: День 6 - обед
A106: №20 | B106: Салат из свежих огурцов | C106: 100 | D106: 0.66 | E106: 5.08 | F106: 1.8 | G106: 65
A107: №108 | B107: Суп картофельный с клецками на мкб со сметаной | C107: 250/15/10 | D107: 6.59 | E107: 7.62 | F107: 18.33 | G107: 206
A108: №302 | B108: Каша гречневая рассыпчатая | C108: 150 | D108: 6.86 | E108: 7.58 | F108: 33 | G108: 170
A109: №234 | B109: Биточки рыбные из минтая | C109: 100/30 | D109: 9.27 | E109: 7.29 | F109: 19.88 | G109: 198
B110: Хлеб ржано-пшеничный | C110: 60 | D110: 6.75 | E110: 3.57 | F110: 25.2 | G110: 180
A111: №342 | B111: Компот из свежих фруктов | C111: 200 | D111: 0.17 | E111: 0.17 | F111: 19.18 | G111: 76.8
B112: Итого за день: | D112: =D97+D98+D99+D100+D101+D103+D104+D106+D107+D108+D109+D110+D111 -> 58 | E112: =E97+E98+E99+E100+E101+E103+E104+E106+E107+E108+E109+E110+E111 -> 53.89 | F112: =F97+F98+F99+F100+F101+F103+F104+F106+F107+F108+F109+F110+F111+F92 -> 226.29 | G112: 1627.7
B114: День 7- завтрак
A115: №219 | B115: Сырники из творога | C115: 80/20 | D115: 14.56 | E115: 7.68 | F115: 14.48 | G115: 187.6
A116: №182 | B116: Каша ячневая молочная со сливочным маслом | C116: 200/10 | D116: 5.96 | E116: 9.83 | F116: 25.47 | G116: 198.45
A117: №376 | B117: Чай с сахаром | C117: 200/15 | D117: 0.021 | E117: 0.005 | F117: 14.975 | G117: 60
B118: Хлеб пшеничный | C118: 40 | D118: 4.5 | E118: 2.38 | F118: 16.8 | G118: 120
B119: День 7 - 2-ой завтрак
B120: Сок | C120: 200 | D120: 0 | E120: 0 | F120: 11.2 | G120: 45
B121: Печенье | C121: 50 | D121: 4 | E121: 6 | F121: 31 | G121: 200
A122: №338 | B122: Фрукт | C122: 200 | D122: 0.52 | E122: 0.34 | F122: 14.7 | G122: 104
B123: День 7 - обед
A124: № 71 | B124: Помидоры свежие порционно с маслом | C124: 100 | D124: 1.1 | E124: 5.2 | F124: 5.2 | G124: 24
A125: №102 | B125: Суп картофельный с бобовыми (гороховый) на мкб | C125: 250/15 | D125: 6.49 | E125: 6.24 | F125: 15.87 | G125: 153.64
A126: №287 | B126: Голубцы ленивые | C126: 200 | D126: 12.73 | E126: 10.8 | F126: 22.34 | G126: 246
B127: Хлеб ржано-пшеничный | C127: 60 | D127: 6.75 | E127: 3.57 | F127: 25.2 | G127: 180
A128: №349 | B128: Компот из сухофруктов | C128: 200 | D128: 0.54 | E128: 0 | F128: 17.58 | G128: 70.73
B129: Итого за день: | D129: =D115+D116+D117+D118+D120+D121+D124+D125+D126+D127+D128+D122 -> 57.171 | E129: =E115+E116+E117+E118+E120+E121+E124+E125+E126+E127+E128+E122 -> 52.045 | F129: 214.815 | G129: 1589.42

Sheet День 1
A1: План - меню
A2: День 1
A4: Наименование | B4: Ед. измерения | C4: Норма закладки
A5: Завтрак
A6: Каша геркулесовая молочная со сливочным маслом | B6: 200/10
A7: Крупа геркулесовая | B7: гр | C7: 30
A8: Молоко 2,5% | B8: гр | C8: 140
A9: Вода | B9: гр | C9: 44
A10: Соль пищевая | B10: гр | C10: 1
A11: Сахарный песок | B11: гр | C11: 5
A12: Масло сливочное 72,5% | B12: гр | C12: 10
A14: Оладьи со сгущенкой | B14: 80/20
A15: Тесто: | C15: 90
A16: мука пшеничная в/с | B16: гр | C16: 45
A17: яйцо куриное | B17: гр | C17: 3
A18: молоко 2,5% | B18: гр | C18: 39
A19: дрожжи сухие | B19: гр | C19: 1
A20: сахарный песок | B20: гр | C20: 1
A21: соль пищевая | B21: гр | C21: 1
A22: сгущенное молоко | B22: гр | C22: 20
A23: масло растительное | B23: гр | C23: 4
A25: Хлеб пшеничный/ ржано-пшеничный | B25: 40
A27: Чай с сахаром | B27: 200/15
A28: чай-заварка | B28: гр | C28: 1
A29: сахарный песок | B29: гр | C29: 15
A30: вода | B30: гр | C30: 210
A32: 2-ой завтрак
A33: Сок | B33: 200
A34: Фрукт | B34: 200
A36: Обед
A37: Помидоры свежие порционно с маслом | B37: 100
A38: Помидоры свежие | B38: гр | C38: 98/90
A39: Масло растительное | B39: гр | C39: 10
A40: Соль пищевая | B40: гр | C40: 2
A42: Суп картофельный с макаронными изделиями на мкб | B42: 250/15/10
A43: Мясо говядины на кости | B43: гр | C43: 32/24
A44: картофель | B44: гр | C44: 83/50
A45: лук репчатый | B45: гр | C45: 6/5
A46: морковь свежая | B46: гр | C46: 13/10
A47: масло растительное | B47: гр | C47: 2
A48: вода | B48: гр | C48: 250
A49: соль пищевая | B49: гр | C49: 2
A50: вермишель | B50: гр | C50: 26
A51: сметана 15% | B51: гр | C51: 10
A53: Жаркое по - домашнему из говядины | B53: 250
A54: Мясо говядины на кости | B54: гр | C54: 95/70
A55: Картофель | B55: гр | C55: 264/159
A56: Лук репчатый | B56: гр | C56: 30/25
A57: Морковь свежая | B57: гр | C57: 31/24
A58: Масло растительное | B58: гр | C58: 11
A59: Томатная паста | B59: гр | C59: 5
A60: Вода | B60: гр | C60: 118
A61: Соль | B61: гр | C61: 2
A63: Хлеб пшеничный/ ржано пшеничный | B63: 60
A65: Компот из сухофруктов | B65: 200
A66: смесь компотная | B66: гр | C66: 18
A67: сахарный песок | B67: гр | C67: 15
A68: вода | B68: гр | C68: 203

Sheet День 2
A1: План - меню
A2: День 2
A4: Наименование | B4: Ед. измерения | C4: Норма закладки
A5: Завтрак
A6: Салат из белокочанной капусты | B6: 100
A7: капуста белокочанная | B7: гр | C7: 100/80
A8: морковь свежая | B8: гр | C8: 18/14
A9: масло растительное | B9: гр | C9: 10
A10: сахарный песок | B10: гр | C10: 6
A11: соль пищевая | B11: гр | C11: 1
A13: Картофельное пюре | B13: 150
A14: картофель | B14: гр | C14: 224/135
A15: молоко 2,5% | B15: гр | C15: 24
A16: масло сливочное 72,5% | B16: гр | C16: 8
A17: соль пищевая | B17: гр | C17: 1
A19: Кнели куриные из п/Ф | B19: 100
A20: Кнели куриные п/ф | B20: шт | C20: 1 (110 гр)
A21: масло растительное | B21: гр | C21: 1
A24: Хлеб пшеничный/ ржано-пшеничный | B24: 40
A26: Чай с сахаром и лимоном | B26: 200/15/7
A27: чай-заварка | B27: гр | C27: 1
A28: сахарный песок | B28: гр | C28: 15
A29: лимон | B29: гр | C29: 8/7
A30: вода | B30: гр | C30: 210
A32: 2-ой завтрак
A33: Сок | B33: 200
A34: Булочка домашняя | B34: 45
A35: Для теста: | B35: гр | C35: 50
A36: мука | B36: гр | C36: 30
A37: дрожжи сухие | B37: гр | C37: 1
A38: масло растительное | B38: гр | C38: 4
A39: соль | B39: гр | C39: 1
A40: сахарный песок | B40: гр | C40: 1
A41: яйцо | B41: гр | C41: 2
A42: молоко | B42: гр | C42: 10
A43: вода | B43: гр | C43: 5
A45: Мука в/с | B45: Гр | C45: 2
A46: Масло растительное | B46: Гр | C46: 1
A47: Сахарный песок | B47: Гр | C47: 3
A49: Обед
A50: Огурцы свежие порционно с маслом | B50: 100
A51: Огурцы свежие | B51: гр | C51: 95/90
A52: Масло растительное | B52: гр | C52: 10
A54: Рассольник Ленинградский на мкб со сметаной | B54: 250/15/10
A55: мясо говядины на кости | B55: гр | C55: 32/24
A56: картофель | B56: гр | C56: 124/75
A57: морковь свежая | B57: гр | C57: 13/10
A58: лук репчатый | B58: гр | C58: 6/5
A59: огурцы соленые | B59: гр | C59: 13/12
A60: томатная паста | B60: гр | C60: 4
A61: масло растительное | B61: гр | C61: 2
A62: соль пищевая | B62: гр | C62: 2
A63: вода | B63: гр | C63: 180
A64: сметана 15% | B64: гр | C64: 10
A65: крупа перловая | B65: гр | C65: 5
A67: Рис отварной | B67: 150
A68: крупа рисовая | B68: гр | C68: 52
A69: масло сливочное 72,5% | B69: гр | C69: 8
A70: соль пищевая | B70: гр | C70: 2
A72: Руба припущенная с овощами | B72: 100/50
A73: минтай св/мор | B73: гр | C73: 165/124
A74: морковь свежая | B74: гр | C74: 12/9
A75: лук репчатый | B75: гр | C75: 5/4
A76: сметана 15% | B76: гр | C76: 10
A77: масло растительное | B77: гр | C77: 3
A78: соль пищевая | B78: гр | C78: 2
A79: вода | B79: гр | C79: 18
A80: мука пшеничная в/с | B80: гр | C80: 2
A81: масло сливочное 72,5% | B81: гр | C81: 4
A83: Хлеб пшеничный/ ржано пшеничный | B83: 60
A85: Кисель ягодный | B85: 200
A86: кисель концентрат | B86: гр | C86: 24
A87: сахарный песок | B87: гр | C87: 15
A88: вода | B88: гр | C88: 203

Sheet День 3
A1: План - меню
A2: День 3
A4: Наименование | B4: Ед. измерения | C4: Норма закладки
A5: Завтрак
A6: Запеканка из творога с сгущенкой | B6: 80/20
A7: Творог | B7: гр | C7: 73
A8: Крупа манная | B8: гр | C8: 5
A9: Молоко 2,5% | B9: гр | C9: 20
A10: Сухари панировачные | B10: гр | C10: 4
A11: Яйцо куриное | B11: гр | C11: 4
A12: Сахарный песок | B12: гр | C12: 7
A13: Сметана 15% | B13: гр | C13: 4
A14: Масло сливочное 72,5% | B14: гр | C14: 4
A15: Молоко сгущенное | B15: гр | C15: 20
A17: Каша молочная "Дружба" со сливочным маслом | B17: 200/5/10
A18: крупа рисовая | B18: гр | C18: 18
A19: Крупа пшенная | B19: гр | C19: 20
A20: молоко 2,5% | B20: гр | C20: 140
A21: вода | B21: гр | C21: 44
A22: сахарный песок | B22: гр | C22: 5
A23: соль пищевая | B23: гр | C23: 1
A24: масло сливочное 72,5% | B24: гр | C24: 10
A26: Хлеб пшеничный/ ржано-пшеничный | B26: 40
A28: Какао с молоком | B28: 200
A29: Какао | B29: гр | C29: 2
A30: сахарный песок | B30: гр | C30: 15
A31: вода | B31: гр | C31: 70
A32: молоко 2,5% | B32: гр | C32: 150
A34: 2-ой завтрак
A35: Сок | B35: 200
A36: Фрукт | B36: 200
A38: Обед
A39: Сыр твердый | B39: 15
A41: Суп картофельный с крупой (гречневый ) на мкб | B41: 250/15
A42: мясо говядины на кости | B42: гр | C42: 32/24
A43: картофель | B43: гр | C43: 125/75
A44: морковь свежая | B44: гр | C44: 13/10
A45: лук репчатый | B45: гр | C45: 13/10
A46: крупа гречневая | B46: гр | C46: 10
A47: масло растительное | B47: гр | C47: 2
A48: соль | B48: гр | C48: 2
A49: вода | B49: гр | C49: 200
A51: Гороховое пюре | B51: 150
A52: горох | B52: гр | C52: 50
A53: масло сливочное 72,5% | B53: гр | C53: 5
A54: соль пищевая | B54: гр | C54: 2
A55: вода | B55: гр | C55: 150
A57: Котлета из говядины из п/ф | B57: 100
A58: котлета мясная п/ф | B58: шт | C58: 1 (120 гр)
A59: масло растительное | B59: гр | C59: 1
A62: Хлеб пшеничный/ ржано пшеничный | B62: 60
A64: Компот из свежих фруктов | B64: 200
A65: Яблоки | B65: гр | C65: 51/43
A66: Вода | B66: гр | C66: 203
A67: Сахарный песок | B67: гр | C67: 15

Sheet День 4
A1: План - меню
A2: День 4
A4: Наименование | B4: Ед. измерения | C4: Норма закладки
A5: Завтрак
A6: Помидоры свежие порцонно | B6: 100
A7: Помидоры свежие | B7: гр | C7: 110/100
A9: Макароны отварные | B9: 150
A10: макаронные изделия | B10: гр | C10: 52
A11: масло сливочное 72,5% | B11: гр | C11: 8
A12: соль пищевая | B12: гр | C12: 2
A14: Сосиска отварная | B14: 100
A15: Сососки | B15: гр | C15: 106/100
A17: Соус красный основной | B17: 30
A18: Морковь свежая | B18: гр | C18: 4/3
A19: Лук репчатый | B19: гр | C19: 2/1
A20: Масло сливочное | B20: гр | C20: 2
A21: Томатная паста | B21: гр | C21: 4
A22: Мука | B22: гр | C22: 2
A23: Соль | B23: гр | C23: 1
A24: Вода | B24: гр | C24: 30
A26: Хлеб пшеничный/ ржано-пшеничный | B26: 40
A28: Чай с сахаром | B28: 200/15
A29: чай-заварка | B29: гр | C29: 1
A30: сахарный песок | B30: гр | C30: 15
A31: вода | B31: гр | C31: 210
A33: 2-ой завтрак
A34: Сок | B34: 200
A35: Вафли | B35: 50
A37: Обед
A38: Салат "Витаминный" | B38: 100
A39: Капуста свежая | B39: гр | C39: 58/46
A40: Морковь | B40: гр | C40: 17/13
A41: Яблоки свежие | B41: гр | C41: 30/25
A42: Сахарный песок | B42: гр | C42: 5
A43: Масло растительное | B43: гр | C43: 10
A44: соль | B44: гр | C44: 1
A46: Борщ с капустой и картофелем на мкб со сметаной | B46: 250/15/10
A47: Мясо говядины на кости | B47: гр | C47: 32/24
A48: картофель | B48: гр | C48: 35/21
A49: лук репчатый | B49: гр | C49: 12/10
A50: морковь свежая | B50: гр | C50: 13/10
A51: капуста свежая | B51: гр | C51: 25/20
A52: свекла | B52: гр | C52: 50/40
A53: масло растительное | B53: гр | C53: 2
A54: томатная паста | B54: гр | C54: 8
A55: вода | B55: гр | C55: 180
A56: соль | B56: гр | C56: 2
A57: сметана | B57: гр | C57: 10
A58: сахарный песок | B58: гр | C58: 3
A60: Плов из говядины | B60: 200
A61: крупа рисовая | B61: гр | C61: 48
A62: мясо говядины на кости | B62: гр | C62: 87/65
A63: лук репчатый | B63: гр | C63: 8/6
A64: морковь свежая | B64: гр | C64: 13/10
A65: масло растительное | B65: гр | C65: 8
A66: соль пищевая | B66: гр | C66: 1
A67: вода | C67: 130
A69: Хлеб пшеничный/ ржано пшеничный | B69: 60
A71: Компот из сухофруктов | B71: 200
A72: смесь компотная | B72: гр | C72: 18
A73: сахарный песок | B73: гр | C73: 15
A74: вода | B74: гр | C74: 203

Sheet День 5
A1: План - меню
A2: День 5
A4: Наименование | B4: Ед. измерения | C4: Норма закладки
A5: Завтрак
A6: Каша пшенная молочная со сливочным маслом | B6: 200/5/10
A7: Крупа пшенная | B7: гр | C7: 38
A8: Молоко 2,5% | B8: гр | C8: 140
A9: Вода | B9: гр | C9: 44
A10: Соль пищевая | B10: гр | C10: 1
A11: Сахарный песок | B11: гр | C11: 5
A12: Масло сливочное 72,5% | B12: гр | C12: 10
A14: Оладьи с повидлом | B14: 80/20
A15: Тесто: | C15: 90
A16: мука пшеничная в/с | B16: гр | C16: 45
A17: яйцо куриное | B17: гр | C17: 3
A18: молоко 2,5% | B18: гр | C18: 39
A19: дрожжи сухие | B19: гр | C19: 1
A20: сахарный песок | B20: гр | C20: 1
A21: соль пищевая | B21: гр | C21: 1
A22: Повидло | B22: гр | C22: 20
A23: масло растительное | B23: гр | C23: 4
A25: Хлеб пшеничный/ ржано-пшеничный | B25: 40
A27: Чай без сахара | B27: 200
A28: чай-заварка | B28: гр | C28: 1
A29: вода | B29: гр | C29: 210
A31: 2-ой завтрак
A32: Сок | B32: 200
A33: Перемяч с мясом печёный | B33: 60
A34: Для теста: | B34: гр | C34: 50
A35: мука | B35: гр | C35: 32
A36: дрожжи сухие | B36: гр | C36: 1
A37: масло растительное | B37: гр | C37: 3
A38: соль | B38: гр | C38: 1
A39: сахарный песок | B39: гр | C39: 1
A40: яйцо | B40: гр | C40: 1
A41: молоко | B41: гр | C41: 10
A42: вода | B42: гр | C42: 6
A44: Для начинки: | B44: гр | C44: 25
A45: Мясо говядины на кости | B45: гр | C45: 26/19
A46: Лук репчатый | B46: гр | C46: 7/6
A47: Соль | B47: гр | C47: 1
A49: мука | B49: гр | C49: 3
A50: масло растительное | B50: гр | C50: 2
A52: Обед
A53: Салат из свеклы с зеленым горошком | B53: 100
A54: Свекла | B54: гр | C54: 92/70
A55: Зеленый горошек | B55: гр | C55: 20
A56: Сахарный песок | B56: гр | C56: 2
A57: Соль пищевая | B57: гр | C57: 1
A58: Масло растительное | B58: гр | C58: 10
A60: Щи из свежей капусты с картофелем на мкб со сметаной | B60: 250/15/10
A61: мясо говядины на кости | B61: гр | C61: 32/24
A62: капуста свежая | B62: гр | C62: 63/50
A63: картофель | B63: гр | C63: 50/30
A64: морковь | B64: гр | C64: 13/10
A65: лук репчатый | B65: гр | C65: 12/10
A66: томатная паста | B66: гр | C66: 5
A67: масло растительное | B67: гр | C67: 2
A68: соль пищевая | B68: гр | C68: 2
A69: вода | B69: гр | C69: 200
A70: сметана 15% | B70: гр | C70: 10
A72: Картофельное пюре | B72: 150
A73: картофель | B73: гр | C73: 224/135
A74: молоко 2,5% | B74: гр | C74: 24
A75: масло сливочное 72,5% | B75: гр | C75: 8
A76: соль пищевая | B76: гр | C76: 1
A78: Тефтели мясные из п/ф | B78: 100
A79: Тефтели мясные п/ф | B79: шт | C79: 1 (110 гр)
A80: Масло растительное | B80: гр | C80: 1
A82: Хлеб пшеничный/ ржано пшеничный | B82: 60
A84: Кисель ягодный | B84: 200
A85: кисель концентрат | B85: гр | C85: 24
A86: сахарный песок | B86: гр | C86: 15
A87: вода | B87: гр | C87: 203
